fUST/lending_fUST_20240906
["ID","MTS","AMOUNT","RATE_DAILY","PERIOD"]
[337306737,1725591048262,-500.0,0.00020575,2]
[337306738,1725591048272,-9336.29,0.00020664,2]
[337306739,1725591048282,-9336.29,0.00020664,2]
[337306740,1725591048291,-9336.29,0.00020664,2]
[337306741,1725591048300,-9336.29,0.00020665,2]
[337306742,1725591048309,-9336.29,0.00020665,2]
[337306743,1725591048319,-9336.29,0.00020665,2]
[337306744,1725591048328,-9336.29,0.00020665,2]
[337306745,1725591048337,-524.97655021,0.00020675,2]
[337306746,1725591048347,-500.0,0.00020684,2]
[337306747,1725591048356,-500.0,0.00020958,2]
[337306748,1725591048366,-500.0,0.00021232,2]
[337306749,1725591048376,-500.0,0.00021506,2]
[337306750,1725591048385,-383.57698692,0.0002178,2]
[337306751,1725591048395,-2094.93,0.0002178,2]
[337306752,1725591048405,-1657.61,0.0002178,2]
[337306753,1725591048414,-1776.78,0.0002178,2]
[337306754,1725591048424,-500.0,0.0002178,2]
[337306755,1725591048434,-500.0,0.0002178,2]
[337306756,1725591048443,-2017.59,0.0002178,2]
[337306757,1725591048453,-500.0,0.0002178,2]
[337306758,1725591048463,-11121.47,0.0002178,2]
[337306759,1725591048473,-500.0,0.0002178,2]
[337306760,1725591048483,-500.0,0.00021781,2]
[337306761,1725591048492,-885.53,0.00021781,2]
[337306762,1725591048502,-579.68,0.00021781,2]
[337306763,1725591048512,-154.049176,0.00021781,2]
[337306764,1725591048521,-156.650702,0.00021781,2]
[337306765,1725591048531,-623.40561695,0.00021781,2]
[337306766,1725591048539,-151.0,0.00021781,2]
[337306767,1725591048549,-500.0,0.00021781,2]
[337306768,1725591048558,-1123.81,0.00021781,2]
[337306769,1725591048568,-1420.48,0.00021781,2]
[337306770,1725591048578,-1875.83,0.00021781,2]
[337306771,1725591048588,-500.0,0.00021781,2]
[337306772,1725591048598,-1163.84,0.00021781,2]
[337306773,1725591048609,-500.0,0.00021781,2]
[337306774,1725591048620,-565.591653,0.00021781,2]
[337306775,1725591048630,-500.0,0.00021781,2]
[337306776,1725591048639,-12881.03,0.00021781,2]
[337306777,1725591048649,-500.0,0.00021781,2]
[337306778,1725591048658,-500.0,0.00021781,2]
[337306779,1725591048668,-500.0,0.00021781,2]
[337306780,1725591048678,-151.0,0.00021781,2]
[337306781,1725591048689,-835.88,0.00021781,2]
[337306782,1725591048700,-500.0,0.00021781,2]
[337306783,1725591048709,-249.70331675,0.00021781,2]
[337306784,1725591048719,-1344.14,0.00021781,2]
[337306785,1725591048729,-151.0,0.00021781,2]
[337306786,1725591048739,-2865.79,0.00021781,2]
[337306787,1725591048749,-28071.32,0.00021781,2]
[337306788,1725591048759,-500.0,0.00021781,2]
[337306789,1725591048769,-500.0,0.00021781,2]
[337306790,1725591048778,-874.799586,0.00021781,2]
[337306791,1725591048789,-874.799586,0.00021781,2]
[337306792,1725591048798,-1767.32,0.00021781,2]
[337306793,1725591048808,-500.0,0.00021781,2]
[337306794,1725591048817,-500.0,0.00021781,2]
[337306795,1725591048828,-500.0,0.00021781,2]
[337306796,1725591048838,-500.0,0.00021781,2]
[337306797,1725591048847,-259.70915,0.00021781,2]
[337306798,1725591048856,-259.70915,0.00021781,2]
[337306799,1725591048866,-166.586557,0.00021781,2]
[337306800,1725591048877,-166.586557,0.00021781,2]
[337306801,1725591048887,-1030.23,0.00021781,2]
[337306802,1725591048896,-862.98,0.00021781,2]
[337306803,1725591048906,-990.99,0.00021781,2]
[337306804,1725591048916,-1954.96,0.00021781,2]
[337306805,1725591048925,-500.0,0.00021781,2]
[337306806,1725591048936,-500.0,0.00021881,2]
[337306807,1725591048945,-500.0,0.00021881,2]
[337306808,1725591048955,-500.0,0.00021881,2]
[337306809,1725591048965,-500.0,0.00021881,2]
[337306810,1725591048978,-500.0,0.00021881,2]
[337306811,1725591048988,-627.82,0.00021881,2]
[337306812,1725591048999,-491.67262316,0.00021889,2]
[337306813,1725591049009,-151.375171,0.00021889,2]
[337306814,1725591049019,-151.0,0.00021889,2]
[337306815,1725591049028,-506.6323495,0.00021917,2]
[337306816,1725591049037,-500.0,0.00021917,2]
[337306817,1725591049046,-535.67360744,0.00021917,2]
[337306818,1725591049057,-1000.0,0.00021917,2]
[337306819,1725591049067,-1000.0,0.00021917,2]
[337306820,1725591049078,-1000.0,0.00021917,2]
[337306821,1725591049088,-1000.0,0.00021917,2]
[337306822,1725591049098,-1000.0,0.00021917,2]
[337306823,1725591049108,-151.0,0.00021917,2]
[337306824,1725591049118,-205.998273,0.00021917,2]
[337306825,1725591049129,-163.308927,0.00021917,2]
[337306826,1725591049140,-188.508589,0.00021917,2]
[337306827,1725591049149,-151.0,0.00021917,2]
[337306828,1725591049159,-500.0,0.00021918,2]
[337306829,1725591049169,-500.0,0.00021918,2]
[337306830,1725591049179,-500.0,0.00021918,2]
[337306831,1725591049189,-500.0,0.00021918,2]
[337306832,1725591049198,-500.0,0.00021918,2]
[337306833,1725591049208,-500.0,0.00021918,2]
[337306834,1725591049218,-487.36132572,0.00021918,2]
[337306835,1725591049228,-500.0,0.00021918,2]
[337306836,1725591049238,-500.0,0.00021918,2]
[337306837,1725591049248,-500.0,0.00021918,2]
[337306838,1725591049259,-500.0,0.00021918,2]
[337306839,1725591049270,-500.0,0.00021918,2]
[337306840,1725591049279,-500.0,0.00021918,2]
[337306841,1725591049290,-500.0,0.00021918,2]
[337306842,1725591049299,-500.0,0.00021918,2]
[337306843,1725591049309,-500.0,0.00021918,2]
[337306844,1725591049319,-389.80093242,0.00021918,2]
[337306845,1725591049329,-500.0,0.00021918,2]
[337306846,1725591049339,-1839.72,0.00021936,3]
[337306847,1725591049348,-919.86,0.00021936,3]
[337306848,1725591049359,-459.92,0.00021936,3]
[337306849,1725591049368,-500.0,0.00021945,2]
[337306850,1725591049377,-15180.50554661,0.00021945,2]
[337306851,1725591049542,-272.28609352,0.00020665,2]
[337306852,1725591049879,-500.0,0.00020664,2]
[337306853,1725591049889,-500.0,0.00020664,2]
[337306854,1725591049898,-500.0,0.00020664,2]
[337306855,1725591049908,-500.0,0.00020664,2]
[337306856,1725591049919,-250.0,0.00020664,2]
[337306857,1725591049929,-500.0,0.00020664,2]
[337306858,1725591049940,-500.0,0.00020664,2]
[337306859,1725591049951,-500.0,0.00020664,2]
[337306860,1725591049961,-9064.03603278,0.00020665,2]
[337306861,1725591049971,-500.0,0.00020674,2]
[337306862,1725591049980,-500.0,0.00020675,2]
[337306863,1725591049990,-500.0,0.00020684,2]
[337306864,1725591049999,-1924.99,0.00020685,2]
[337306865,1725591050008,-500.0,0.00020849,2]
[337306866,1725591050017,-500.0,0.00020948,2]
[337306867,1725591050026,-500.0,0.00020949,2]
[337306868,1725591050036,-500.0,0.00020958,2]
[337306869,1725591050045,-500.0,0.00021222,2]
[337306870,1725591050055,-500.0,0.00021223,2]
[337306871,1725591050064,-500.0,0.00021232,2]
[337306872,1725591050074,-500.0,0.00021496,2]
[337306873,1725591050083,-500.0,0.00021497,2]
[337306874,1725591050092,-500.0,0.00021506,2]
[337306875,1725591050102,-500.0,0.0002177,2]
[337306876,1725591050113,-500.0,0.0002178,2]
[337306877,1725591050124,-1686.16445339,0.00021945,2]
[337306878,1725591050135,-500.0,0.00021945,2]
[337306879,1725591050145,-500.0,0.00021945,2]
[337306880,1725591050156,-1353.23,0.00021945,2]
[337306881,1725591050165,-2996.25,0.00021945,2]
[337306882,1725591050173,-500.0,0.00021945,2]
[337306883,1725591050183,-201.0,0.00022,2]
[337306884,1725591050191,-2232.8,0.00022044,2]
[337306885,1725591050200,-11811.28,0.00022044,2]
[337306886,1725591050210,-1396.21,0.00022044,2]
[337306887,1725591050219,-500.0,0.00022044,2]
[337306888,1725591050228,-500.0,0.00022044,2]
[337306889,1725591050237,-3107.3,0.00022044,2]
[337306890,1725591050246,-3615.0,0.00022044,2]
[337306891,1725591050256,-570.36,0.00022044,2]
[337306892,1725591050266,-500.0,0.00022044,2]
[337306893,1725591050275,-2545.18,0.00022045,2]
[337306894,1725591050285,-1442.33,0.00022045,2]
[337306895,1725591050294,-2328.53,0.00022045,2]
[337306896,1725591050304,-1190.63,0.00022045,2]
[337306897,1725591050314,-500.0,0.00022045,2]
[337306898,1725591050323,-1625.32,0.00022045,2]
[337306899,1725591050333,-1240.69,0.00022045,2]
[337306900,1725591050342,-500.0,0.00022045,2]
[337306901,1725591050352,-500.0,0.00022045,2]
[337306902,1725591050362,-4594.03,0.00022045,2]
[337306903,1725591050372,-500.0,0.00022045,2]
[337306904,1725591050381,-1506.42,0.00022045,2]
[337306905,1725591050390,-1828.8,0.00022054,2]
[337306906,1725591050400,-11734.36,0.00022054,2]
[337306907,1725591050409,-1462.77,0.00022054,2]
[337306908,1725591050417,-1936.47,0.00022054,2]
[337306909,1725591050426,-3064.32,0.00022054,2]
[337306910,1725591050435,-500.0,0.00022054,2]
[337306911,1725591050445,-500.0,0.00022054,2]
[337306912,1725591050454,-500.0,0.00022054,2]
[337306913,1725591050463,-2094.93,0.00022054,2]
[337306914,1725591050473,-1657.61,0.00022054,2]
[337306915,1725591050482,-1776.78,0.00022054,2]
[337306916,1725591050491,-500.0,0.00022054,2]
[337306917,1725591050501,-500.0,0.00022054,2]
[337306918,1725591050511,-2017.59,0.00022054,2]
[337306919,1725591050523,-500.0,0.00022054,2]
[337306920,1725591050533,-11121.47,0.00022054,2]
[337306921,1725591050543,-500.0,0.00022054,2]
[337306922,1725591050554,-500.0,0.00022054,2]
[337306923,1725591050566,-500.0,0.00022055,2]
[337306924,1725591050577,-885.53,0.00022055,2]
[337306925,1725591050587,-579.68,0.00022055,2]
[337306926,1725591050599,-1123.81,0.00022055,2]
[337306927,1725591050612,-1420.48,0.00022055,2]
[337306928,1725591050623,-1875.83,0.00022055,2]
[337306929,1725591050634,-500.0,0.00022055,2]
[337306930,1725591050644,-1163.84,0.00022055,2]
[337306931,1725591050654,-500.0,0.00022055,2]
[337306932,1725591050664,-500.0,0.00022055,2]
[337306933,1725591050673,-12881.03,0.00022055,2]
[337306934,1725591050683,-500.0,0.00022055,2]
[337306935,1725591050693,-500.0,0.00022055,2]
[337306936,1725591050703,-500.0,0.00022055,2]
[337306937,1725591050712,-835.88,0.00022055,2]
[337306938,1725591050721,-500.0,0.00022055,2]
[337306939,1725591050730,-1344.14,0.00022055,2]
[337306940,1725591050741,-2865.79,0.00022055,2]
[337306941,1725591050751,-28071.32,0.00022055,2]
[337306942,1725591050760,-327.54936641,0.00022055,2]
[337306943,1725591050770,-500.0,0.00022055,2]
[337306944,1725591050779,-1767.32,0.00022055,2]
[337306945,1725591050789,-500.0,0.00022055,2]
[337306946,1725591050798,-500.0,0.00022055,2]
[337306947,1725591050808,-500.0,0.00022055,2]
[337306948,1725591050820,-500.0,0.00022055,2]
[337306949,1725591050830,-1030.23,0.00022055,2]
[337306950,1725591050841,-862.98,0.00022055,2]
[337306951,1725591050852,-990.99,0.00022055,2]
[337306952,1725591050863,-438.18766162,0.00022055,2]
[337306953,1725591050876,-1516.77233838,0.00022055,2]
[337306954,1725591050886,-500.0,0.00022055,2]
[337306955,1725591050895,-310.23,0.00022155,2]
[337306956,1725591050904,-500.0,0.00022155,2]
[337306957,1725591050913,-500.0,0.00022155,2]
[337306958,1725591050922,-1000.0,0.00022155,2]
[337306959,1725591050932,-500.0,0.00022155,2]
[337306960,1725591050942,-499.58140778,0.00022155,2]
[337306961,1725591050951,-627.82,0.00022155,2]
[337306962,1725591050960,-150.112234,0.000222,3]
[337306963,1725591050969,-500.0,0.00022219,2]
[337306964,1725591050978,-16866.67,0.00022219,2]
[337306965,1725591050987,-500.0,0.00022219,2]
[337306966,1725591050997,-500.0,0.00022219,2]
[337306967,1725591051006,-1353.23,0.00022219,2]
[337306968,1725591051015,-2996.25,0.00022219,2]
[337306969,1725591051026,-500.0,0.00022219,2]
[337306970,1725591051037,-998.39697225,0.00022221,2]
[337306971,1725591051046,-2232.8,0.00022318,2]
[337306972,1725591051056,-11811.28,0.00022318,2]
[337306973,1725591051067,-1396.21,0.00022318,2]
[337306974,1725591051076,-500.0,0.00022318,2]
[337306975,1725591051085,-500.0,0.00022318,2]
[337306976,1725591051096,-3107.3,0.00022318,2]
[337306977,1725591051107,-3615.0,0.00022318,2]
[337306978,1725591051116,-570.36,0.00022318,2]
[337306979,1725591051125,-500.0,0.00022318,2]
[337306980,1725591051134,-2545.18,0.00022319,2]
[337306981,1725591051143,-1442.33,0.00022319,2]
[337306982,1725591051152,-2328.53,0.00022319,2]
[337306983,1725591051162,-151.0,0.00022319,7]
[337306984,1725591051172,-151.0,0.00022319,7]
[337306985,1725591051183,-1190.63,0.00022319,2]
[337306986,1725591051195,-500.0,0.00022319,2]
[337306987,1725591051206,-1625.32,0.00022319,2]
[337306988,1725591051216,-874.799586,0.00022319,7]
[337306989,1725591051227,-874.799586,0.00022319,7]
[337306990,1725591051237,-1240.69,0.00022319,2]
[337306991,1725591051248,-576.00810254,0.00022319,2]
[337306992,1725591051259,-500.0,0.00022319,2]
[337306993,1725591051269,-4594.03,0.00022319,2]
[337306994,1725591051279,-259.70915,0.00022319,7]
[337306995,1725591051289,-259.70915,0.00022319,7]
[337306996,1725591051299,-166.586557,0.00022319,7]
[337306997,1725591051310,-500.0,0.00022319,2]
[337306998,1725591051320,-166.586557,0.00022319,7]
[337306999,1725591051330,-1506.42,0.00022319,2]
[337307000,1725591051341,-1828.8,0.00022328,2]
[337307001,1725591051351,-11734.36,0.00022328,2]
[337307002,1725591051359,-1462.77,0.00022328,2]
[337307003,1725591051369,-1936.47,0.00022328,2]
[337307004,1725591051380,-3064.32,0.00022328,2]
[337307005,1725591051390,-500.0,0.00022328,2]
[337307006,1725591051401,-500.0,0.00022328,2]
[337307007,1725591051412,-500.0,0.00022328,2]
[337307008,1725591051422,-2094.93,0.00022328,2]
[337307009,1725591051433,-1657.61,0.00022328,2]
[337307010,1725591051442,-1776.78,0.00022328,2]
[337307011,1725591051452,-500.0,0.00022328,2]
[337307012,1725591051462,-500.0,0.00022328,2]
[337307013,1725591051472,-2017.59,0.00022328,2]
[337307014,1725591051481,-500.0,0.00022328,2]
[337307015,1725591051491,-11121.47,0.00022328,2]
[337307016,1725591051500,-500.0,0.00022328,2]
[337307017,1725591051510,-500.0,0.00022328,2]
[337307018,1725591051520,-500.0,0.00022329,2]
[337307019,1725591051533,-885.53,0.00022329,2]
[337307020,1725591051542,-579.68,0.00022329,2]
[337307021,1725591051553,-1123.81,0.00022329,2]
[337307022,1725591051562,-1420.48,0.00022329,2]
[337307023,1725591051572,-1875.83,0.00022329,2]
[337307024,1725591051582,-151.0,0.00022329,7]
[337307025,1725591051591,-500.0,0.00022329,2]
[337307026,1725591051601,-1163.84,0.00022329,2]
[337307027,1725591051611,-500.0,0.00022329,2]
[337307028,1725591051621,-300.155284,0.00022329,7]
[337307029,1725591051630,-547.96162697,0.00022329,2]
[337307030,1725591051640,-12881.03,0.00022329,2]
[337307031,1725591051650,-500.0,0.00022329,2]
[337307032,1725591051660,-500.0,0.00022329,2]
[337307033,1725591051670,-243.75791925,0.00022329,2]
[337307034,1725591051679,-835.88,0.00022329,2]
[337307035,1725591051688,-500.0,0.00022329,2]
[337307036,1725591051699,-1344.14,0.00022329,2]
[337307037,1725591051709,-2865.79,0.00022329,2]
[337307038,1725591051719,-25127.44266893,0.00022329,2]
[337307337,1725591098526,159.692203,0.00019822,2]
[337307338,1725591098741,159.692203,0.00019916,2]
[337307339,1725591098951,159.692203,0.0002001,2]
[337307340,1725591099198,159.692203,0.00020103,2]
[337307341,1725591099613,159.692203,0.00020197,2]
[337307342,1725591099663,159.692203,0.00020291,2]
[337307343,1725591099865,159.692203,0.00020385,2]
[337307344,1725591100161,159.692203,0.00020479,2]
[337307741,1725591416624,5295.75120876,0.00020475,2]
[337307769,1725591800645,33891.21,0.000205,2]
[337307779,1725591896876,4633.78230763,0.00020475,2]
[337307781,1725591897598,159.692203,0.00019758,2]
[337307782,1725591897842,159.692203,0.00020101,2]
[337307783,1725591898134,159.692203,0.00020444,2]
[337307807,1725592196331,200.76,0.00027,120]
[337307808,1725592202155,-495.25,0.000266,31]
[337307809,1725592202184,-495.25,0.000266,31]
[337307810,1725592202211,-495.25,0.000266,31]
[337307811,1725592202241,-495.25,0.000266,31]
[337307812,1725592202268,-495.25,0.000266,31]
[337307813,1725592202296,-495.25,0.000266,31]
[337307814,1725592202323,-495.25,0.000266,31]
[337307815,1725592202481,-495.25,0.000266,31]
[337307816,1725592202509,-495.25,0.000266,31]
[337307817,1725592202537,-495.25,0.000266,31]
[337307818,1725592202564,-495.25,0.000266,31]
[337307819,1725592202591,-495.25,0.000266,31]
[337307820,1725592202627,-2323.2789,0.00030287,30]
[337307821,1725592202653,-1000.0,0.00031,31]
[337307822,1725592202682,-495.25,0.000322,31]
[337307823,1725592202707,-495.25,0.000322,31]
[337307824,1725592202737,-495.25,0.000322,31]
[337307825,1725592202763,-495.25,0.000322,31]
[337307826,1725592202789,-495.25,0.000322,31]
[337307827,1725592202816,-495.25,0.000322,31]
[337307828,1725592202842,-495.25,0.000322,31]
[337307829,1725592202869,-495.25,0.000322,31]
[337307830,1725592202895,-495.25,0.000322,31]
[337307831,1725592202921,-495.25,0.000322,31]
[337307832,1725592202948,-495.25,0.000322,31]
[337307833,1725592202976,-495.25,0.000322,31]
[337307834,1725592203004,-495.25,0.000322,31]
[337307835,1725592203032,-495.25,0.000322,31]
[337307836,1725592203061,-495.25,0.000322,31]
[337307837,1725592203090,-495.25,0.000322,31]
[337307838,1725592203118,-495.25,0.000322,31]
[337307839,1725592203146,-495.25,0.000322,31]
[337307840,1725592203175,-495.25,0.000322,31]
[337307841,1725592203203,-495.25,0.000322,31]
[337307842,1725592203233,-495.25,0.000322,31]
[337307843,1725592203261,-495.25,0.000322,31]
[337307844,1725592203289,-495.25,0.000322,31]
[337307845,1725592203317,-495.25,0.000322,31]
[337307846,1725592203343,-388.5591,0.00032287,30]
[337307847,1725592203369,-409.76861662,0.000325,120]
[337307848,1725592203395,-500.0,0.00032876,30]
[337307849,1725592203422,-500.0,0.00032876,30]
[337307850,1725592203451,-506.73001904,0.00032876,30]
[337307851,1725592203487,-1000.0,0.00032876,118]
[337307852,1725592203515,-1092.89485199,0.00032876,118]
[337307853,1725592203542,-499.99,0.0003289,90]
[337307854,1725592203569,-1000.0,0.00033,33]
[337307855,1725592203595,-2957.30755369,0.00033,120]
[337307856,1725592203624,-10000.0,0.00034,90]
[337307857,1725592203648,-700.0,0.00034,120]
[337307858,1725592203676,-304.942,0.000345,120]
[337307859,1725592203701,-304.942,0.000345,120]
[337307860,1725592203728,-304.943,0.000345,120]
[337307861,1725592203754,-304.942,0.000345,120]
[337307862,1725592203780,-304.943,0.000345,120]
[337307863,1725592203807,-1734.3803704,0.00034521,120]
[337307864,1725592203833,-151.0,0.00034849,120]
[337307865,1725592203859,-1000.0,0.00035,35]
[337307866,1725592203887,-3000.0,0.00035,119]
[337307867,1725592203916,-151.0,0.00035479,120]
[337307868,1725592203944,-10000.0,0.000355,30]
[337307869,1725592203974,-463.891139,0.00035616,120]
[337307870,1725592204006,-151.0,0.00036466,120]
[337307871,1725592204041,-1000.0,0.00037,37]
[337307872,1725592204073,-495.25,0.000378,31]
[337307873,1725592204102,-495.25,0.000378,31]
[337307874,1725592204131,-495.25,0.000378,31]
[337307875,1725592204160,-495.25,0.000378,31]
[337307876,1725592204189,-495.25,0.000378,31]
[337307877,1725592204219,-495.25,0.000378,31]
[337307878,1725592204248,-495.25,0.000378,31]
[337307879,1725592204276,-495.25,0.000378,31]
[337307880,1725592204305,-495.25,0.000378,31]
[337307881,1725592204335,-495.25,0.000378,31]
[337307882,1725592204365,-495.25,0.000378,31]
[337307883,1725592204394,-495.25,0.000378,31]
[337307884,1725592204424,-495.25,0.000378,31]
[337307885,1725592204454,-495.25,0.000378,31]
[337307886,1725592204484,-495.25,0.000378,31]
[337307887,1725592204513,-495.25,0.000378,31]
[337307888,1725592204543,-495.25,0.000378,31]
[337307889,1725592204572,-495.25,0.000378,31]
[337307890,1725592204602,-495.25,0.000378,31]
[337307891,1725592204632,-495.25,0.000378,31]
[337307892,1725592204665,-495.25,0.000378,31]
[337307893,1725592204718,-495.25,0.000378,31]
[337307894,1725592204751,-495.25,0.000378,31]
[337307895,1725592204796,-495.25,0.000378,31]
[337307896,1725592204847,-151.0,0.00038082,120]
[337307897,1725592204904,-151.0,0.00038219,120]
[337307898,1725592204942,-1000.0,0.00038356,120]
[337307899,1725592204976,-1000.0,0.00038356,120]
[337307900,1725592205009,-800.08357443,0.00038356,120]
[337307901,1725592205034,-2281.08478946,0.000386,30]
[337307902,1725592205073,-311.26911851,0.000386,30]
[337307903,1725592205101,-2000.0,0.00039,120]
[337307904,1725592205130,-2000.0,0.00039,120]
[337307905,1725592205155,-2000.0,0.00039,120]
[337307906,1725592205182,-2000.0,0.00039,60]
[337307907,1725592205209,-2000.0,0.00039,60]
[337307908,1725592205236,-2000.0,0.00039,60]
[337307909,1725592205263,-2000.0,0.00039,60]
[337307910,1725592205289,-2000.0,0.00039,60]
[337307911,1725592205445,-2000.0,0.00039,60]
[337307912,1725592205471,-2000.0,0.00039,30]
[337307913,1725592205507,-2000.0,0.00039,30]
[337307914,1725592205532,-2000.0,0.00039,30]
[337307915,1725592205558,-2000.0,0.00039,30]
[337307916,1725592205584,-2000.0,0.00039,30]
[337307917,1725592205611,-2000.0,0.00039,30]
[337307918,1725592205638,-2000.0,0.00039,120]
[337307919,1725592205665,-2000.0,0.00039,120]
[337307920,1725592205692,-2000.0,0.00039,120]
[337307921,1725592205718,-2000.0,0.00039,60]
[337307922,1725592205748,-2000.0,0.00039,60]
[337307923,1725592205773,-2000.0,0.00039,60]
[337307924,1725592205799,-151.0,0.00039699,120]
[337307925,1725592205827,-953.20138014,0.00039988,60]
[337307926,1725592205852,-500000.0,0.0004,120]
[337307927,1725592205877,-24001.78916241,0.0004,30]
[337307928,1725592205902,-700.0,0.0004,120]
[337307929,1725592205927,-1000.0,0.0004,120]
[337307930,1725592205951,-1000.0,0.0004,120]
[337307931,1725592205986,-1000.0,0.0004,120]
[337307932,1725592206012,-1000.0,0.0004,120]
[337307933,1725592206038,-151.98009108,0.0004,120]
[337307934,1725592206065,-260.837414,0.0004,30]
[337307935,1725592206091,-151.0,0.00040959,120]
[337307936,1725592206120,-500000.0,0.00041,120]
[337307937,1725592206147,-1000.0,0.00041,120]
[337307938,1725592206174,-925.94600427,0.00041095,120]
[337307939,1725592206200,-152.79858638,0.00041282,38]
[337307940,1725592206229,-151.0,0.00041315,120]
[337307941,1725592206255,-463.891139,0.00041553,120]
[337307942,1725592206280,-320.0,0.00041918,120]
[337307943,1725592206306,-320.0,0.00041918,120]
[337307944,1725592206332,-320.0,0.00041918,120]
[337307945,1725592206358,-320.0,0.00041918,120]
[337307946,1725592206384,-320.0,0.00041918,120]
[337307947,1725592206411,-320.0,0.00041918,120]
[337307948,1725592206436,-320.0,0.00041918,120]
[337307949,1725592206461,-320.0,0.00041918,120]
[337307950,1725592206487,-320.0,0.00041918,120]
[337307951,1725592206512,-320.0,0.00041918,120]
[337307952,1725592206538,-320.0,0.00041918,120]
[337307953,1725592206563,-320.0,0.00041918,120]
[337307954,1725592206588,-320.0,0.00041918,120]
[337307955,1725592206614,-320.0,0.00041918,120]
[337307956,1725592206639,-320.0,0.00041918,120]
[337307957,1725592206663,-320.0,0.00041918,120]
[337307958,1725592206687,-320.0,0.00041918,120]
[337307959,1725592206711,-320.0,0.00041918,120]
[337307960,1725592206737,-320.0,0.00041918,120]
[337307961,1725592206761,-320.0,0.00041918,120]
[337307962,1725592206787,-320.0,0.00041918,120]
[337307963,1725592206812,-320.0,0.00041918,120]
[337307964,1725592206837,-320.0,0.00041918,120]
[337307965,1725592206862,-320.0,0.00041918,120]
[337307966,1725592206886,-320.0,0.00041918,120]
[337307967,1725592206909,-320.0,0.00041918,120]
[337307968,1725592206932,-320.0,0.00041918,120]
[337307969,1725592206955,-320.0,0.00041918,120]
[337307970,1725592206979,-320.0,0.00041918,120]
[337307971,1725592207009,-320.0,0.00041918,120]
[337307972,1725592207037,-320.0,0.00041918,120]
[337307973,1725592207064,-320.0,0.00041918,120]
[337307974,1725592207091,-320.0,0.00041918,120]
[337307975,1725592207116,-320.0,0.00041918,120]
[337307976,1725592207147,-320.0,0.00041918,120]
[337307977,1725592207179,-320.0,0.00041918,120]
[337307978,1725592207230,-320.0,0.00041918,120]
[337307979,1725592207276,-320.0,0.00041918,120]
[337307980,1725592207307,-320.0,0.00041918,120]
[337307981,1725592207340,-320.0,0.00041918,120]
[337307982,1725592207366,-320.0,0.00041918,120]
[337307983,1725592207394,-320.0,0.00041918,120]
[337307984,1725592207421,-320.0,0.00041918,120]
[337307985,1725592207446,-320.0,0.00041918,120]
[337307986,1725592207475,-320.0,0.00041918,120]
[337307987,1725592207501,-320.0,0.00041918,120]
[337307988,1725592207548,-320.0,0.00041918,120]
[337307989,1725592207594,-320.0,0.00041918,120]
[337307990,1725592207639,-320.0,0.00041918,120]